bitfinex/quotes_BTCUSD_20250515
["timestamp","ask_amount","ask_price","bid_price","bid_amount"]
[1747267766662,0.04264209,103510.0,103500.0,0.26278273]
[1747267768527,0.0329812,103510.0,103500.0,0.26278273]
[1747267768729,0.04264191,103510.0,103500.0,0.26278273]
[1747267769183,0.042642,103510.0,103500.0,0.26278273]
[1747267769392,0.01366015,103510.0,103500.0,0.26278273]
[1747267769634,0.02332058,103510.0,103500.0,0.26278273]
[1747267770082,0.03298129,103510.0,103500.0,0.26278273]
[1747267771231,0.02332049,103510.0,103500.0,0.26278273]
[1747267771455,0.03298101,103510.0,103500.0,0.26278273]
[1747267771895,0.04264172,103510.0,103500.0,0.26278273]
[1747267774873,0.01366015,103510.0,103500.0,0.26278273]
[1747267775074,0.004,103510.0,103500.0,0.70009213]
[1747267777867,0.01366006,103510.0,103500.0,0.70009213]
[1747267778286,0.004,103510.0,103500.0,0.93009213]
[1747267780005,0.004,103510.0,103500.0,1.11361213]
[1747267780832,0.01366006,103510.0,103500.0,1.11361213]
[1747267781459,0.01366015,103510.0,103500.0,1.11361213]
[1747267781741,0.004,103510.0,103500.0,1.11361213]
[1747267783592,0.03863807,103520.0,103510.0,0.2221996]
[1747267783847,0.03863807,103520.0,103510.0,0.4056396]
[1747267784385,0.0289782,103520.0,103510.0,0.4056396]
[1747267784823,0.0309782,103520.0,103510.0,0.4056396]
[1747267785067,0.04263798,103520.0,103510.0,0.4056396]
[1747267787468,0.02331852,103520.0,103510.0,0.4056396]
[1747267787677,0.03297802,103520.0,103510.0,0.4056396]
[1747267788127,0.01365912,103520.0,103510.0,0.4056396]
[1747267788300,0.004,103520.0,103510.0,0.7616396]
[1747267788516,0.004,103520.0,103510.0,0.7775396]
[1747267789208,0.01365912,103520.0,103510.0,0.7775396]
[1747267789612,0.01165912,103520.0,103510.0,0.7775396]
[1747267790128,0.00965912,103520.0,103510.0,0.7775396]
[1747267791903,0.01931834,103520.0,103510.0,0.7775396]
[1747267792105,0.00965912,103520.0,103510.0,0.7775396]
[1747267792314,0.02897811,103520.0,103510.0,0.7775396]
[1747267792728,0.01931843,103520.0,103510.0,0.7775396]
[1747267793121,0.03863751,103520.0,103510.0,0.7775396]
[1747267795525,0.03863751,103520.0,103510.0,0.9449996]
[1747267795526,0.02897783,103520.0,103510.0,0.9449996]
[1747267795787,0.04829711,103520.0,103510.0,0.9449996]
[1747267796047,0.04829711,103520.0,103510.0,0.9289996]
[1747267796517,0.04829711,103520.0,103510.0,0.9289196]
[1747267797130,0.04829701,103520.0,103510.0,0.9289196]
[1747267797341,0.04829692,103520.0,103510.0,0.9289196]
[1747267797977,0.04829758,103520.0,103510.0,0.9289196]
[1747267799049,0.0386378,103520.0,103510.0,0.9289196]
[1747267799388,0.02897821,103520.0,103510.0,0.9289196]
[1747267799593,0.00965931,103520.0,103510.0,0.9289196]
[1747267800360,0.01931881,103520.0,103510.0,0.9289196]
[1747267800611,0.01931871,103520.0,103510.0,0.9289196]
[1747267802249,0.00965912,103520.0,103510.0,0.92891895]
[1747267802459,0.06317606,103530.0,103520.0,0.22217815]
[1747267802726,0.08249403,103530.0,103520.0,0.22217815]
[1747267802924,0.002,103530.0,103520.0,0.57807815]
[1747267803238,0.002,103530.0,103520.0,0.69138755]
[1747267803648,0.004,103530.0,103520.0,0.69138755]
[1747267803884,0.006,103530.0,103520.0,0.69138755]
[1747267804165,0.006,103530.0,103520.0,1.1170284]
[1747267804429,0.004,103530.0,103520.0,1.1170284]
[1747267804708,0.004,103530.0,103520.0,1.3470284]
[1747267806026,0.002,103530.0,103520.0,1.3470284]
[1747267806330,0.002,103530.0,103520.0,1.3500284]
[1747267806441,0.002,103530.0,103520.0,1.3530284]
[1747267806661,0.002,103530.0,103520.0,1.3570284]
[1747267806868,0.002,103530.0,103520.0,1.3540284]
[1747267807102,0.002,103530.0,103520.0,1.3590284]
[1747267808629,0.002,103530.0,103520.0,0.9479284]
[1747267811504,0.002,103530.0,103520.0,1.3590284]
[1747267812750,0.04707541,103530.0,103520.0,1.21527815]
[1747267812961,0.04315819,103530.0,103520.0,1.35183815]
[1747267813169,0.06247503,103530.0,103520.0,1.35183815]
[1747267813580,0.06247503,103530.0,103520.0,1.58183815]
[1747267813784,0.06247494,103530.0,103520.0,0.98027815]
[1747267814060,0.06247616,103530.0,103520.0,0.90941934]
[1747267814267,0.07213519,103530.0,103520.0,0.94139802]
[1747267814887,0.07213519,103530.0,103520.0,0.93839802]
[1747267815304,0.07213519,103530.0,103520.0,0.94139802]
[1747267816288,0.07213519,103530.0,103520.0,0.95105733]
[1747267816712,0.0335,103530.0,103520.0,0.95105733]
[1747267816940,0.002,103530.0,103520.0,0.95105733]
[1747267818039,0.002,103530.0,103520.0,1.18105733]
[1747267818944,0.002,103530.0,103520.0,1.21345733]
[1747267820905,0.002,103530.0,103520.0,1.19745733]
[1747267822764,0.002,103530.0,103520.0,1.30986673]
[1747267823162,0.002,103530.0,103520.0,1.29456673]
[1747267823745,0.002,103530.0,103520.0,1.30986673]
[1747267825661,0.002,103530.0,103520.0,1.29456673]
[1747267826288,0.002,103530.0,103520.0,1.27836673]
[1747267828766,0.002,103530.0,103520.0,1.29416673]
[1747267828975,0.002,103530.0,103520.0,1.31016673]
[1747267831860,0.002,103530.0,103520.0,1.73580758]
[1747267834491,0.002,103550.0,103540.0,0.22213524]
[1747267834708,0.00209333,103550.0,103540.0,0.70162464]
[1747267835308,0.00209333,103550.0,103540.0,0.93162464]
[1747267835995,0.00409333,103550.0,103540.0,0.91572464]
[1747267836424,0.00609333,103550.0,103540.0,0.91572464]
[1747267839276,0.00609333,103550.0,103540.0,0.9254115]
[1747267840745,0.02249333,103550.0,103540.0,0.9254115]
[1747267840954,0.03214966,103550.0,103540.0,0.9254115]
[1747267843051,0.02249333,103550.0,103540.0,0.9254115]
[1747267843466,0.03214966,103550.0,103540.0,0.9254115]
[1747267843672,0.02249333,103550.0,103540.0,0.9254115]
[1747267843912,0.03214966,103550.0,103540.0,0.9254115]
[1747267845482,0.02249333,103550.0,103540.0,0.9254115]
[1747267845669,0.03214966,103550.0,103540.0,0.9254115]
[1747267845879,0.03214966,103550.0,103540.0,1.3423715]
[1747267848263,0.02249333,103550.0,103540.0,1.3423715]
[1747267848705,0.02249333,103550.0,103540.0,0.9760915]
[1747267848909,0.02249333,103550.0,103540.0,1.3422515]
[1747267850045,0.00609333,103550.0,103540.0,1.3422515]
[1747267853622,0.00609333,103550.0,103540.0,1.3581515]
[1747267854236,0.00609333,103550.0,103540.0,1.3422515]
[1747267854447,0.01574966,103550.0,103540.0,1.3422515]
[1747267854655,0.00609333,103550.0,103540.0,1.3422515]
[1747267856789,0.02259333,103550.0,103540.0,1.3422515]
[1747267858444,0.00609333,103550.0,103540.0,1.3422515]
[1747267862091,0.00609333,103550.0,103540.0,1.3586515]
[1747267862297,0.00609333,103550.0,103540.0,1.3749515]
[1747267862521,0.0427566,103570.0,103560.0,0.56209233]
[1747267862746,0.0427566,103570.0,103560.0,0.92801233]
[1747267864056,0.0447566,103570.0,103560.0,0.92801233]
[1747267864968,0.0467566,103570.0,103560.0,0.92801233]
[1747267867085,0.0467566,103570.0,103560.0,1.15801233]
[1747267867335,0.0314566,103570.0,103560.0,1.15801233]
[1747267868423,0.0468566,103570.0,103560.0,1.15801233]
[1747267869312,0.0314566,103570.0,103560.0,1.15801233]
[1747267870198,0.0152566,103570.0,103560.0,0.92801233]
[1747267870893,0.0152566,103570.0,103560.0,1.15801233]
[1747267871119,0.0152566,103570.0,103560.0,0.92801233]
[1747267871554,0.0152566,103570.0,103560.0,1.15801233]
[1747267872444,0.0453566,103570.0,103560.0,1.15801233]
[1747267872685,0.05501106,103570.0,103560.0,0.79209233]
[1747267872916,0.05501106,103570.0,103560.0,1.15793233]
[1747267873352,0.0453566,103570.0,103560.0,0.79209233]
[1747267873554,0.0453566,103570.0,103560.0,1.15793233]
[1747267874301,0.0453566,103570.0,103560.0,0.92793233]
[1747267875906,0.05501106,103570.0,103560.0,0.92793233]
[1747267877900,0.05501106,103570.0,103560.0,1.34481233]
[1747267878309,0.05501106,103570.0,103560.0,1.57481233]
[1747267879546,0.06392832,103570.0,103560.0,1.57481233]
[1747267879764,0.07358306,103570.0,103560.0,1.57481233]
[1747267879979,0.0646658,103570.0,103560.0,1.57481233]
[1747267880354,0.07432044,103570.0,103560.0,1.57481233]
[1747267880758,0.06466561,103570.0,103560.0,1.57481233]
[1747267881373,0.07432044,103570.0,103560.0,1.57481233]
[1747267881740,0.06466561,103570.0,103560.0,1.57481233]
[1747267881942,0.07432044,103570.0,103560.0,1.57481233]
[1747267882143,0.06466561,103570.0,103560.0,1.57481233]
[1747267882967,0.06466561,103570.0,103560.0,1.20897233]
[1747267883192,0.06466561,103570.0,103560.0,1.57461233]
[1747267883622,0.07432026,103570.0,103560.0,1.57461233]
[1747267885720,0.09363011,103570.0,103560.0,1.57461233]
[1747267886607,0.09363002,103570.0,103560.0,1.57461233]
[1747267887057,0.09363011,103570.0,103560.0,1.57461233]
[1747267887289,0.08397509,103570.0,103560.0,1.57461233]
[1747267888344,0.07432026,103570.0,103560.0,1.57461233]
[1747267888781,0.06466561,103570.0,103560.0,1.34461233]
[1747267889002,0.04956561,103570.0,103560.0,1.34461233]
[1747267889225,0.0152566,103570.0,103560.0,1.44192173]
[1747267889446,0.0152566,103570.0,103560.0,1.70212173]
[1747267890299,0.02091106,103570.0,103560.0,1.70212173]
[1747267890485,0.02091106,103570.0,103560.0,1.70412173]
[1747267890697,0.02091106,103570.0,103560.0,1.70612173]
[1747267891126,0.02091106,103570.0,103560.0,1.70412173]
[1747267891326,0.02091106,103570.0,103560.0,1.70812173]
[1747267891693,0.0112566,103570.0,103560.0,1.70812173]
[1747267892701,0.0112566,103570.0,103560.0,1.72266258]
[1747267907513,0.0112566,103570.0,103560.0,2.13376258]
[1747267909514,0.0112566,103570.0,103560.0,2.11856258]
[1747267915988,0.0161,103600.0,103590.0,0.562028]
[1747267916221,0.0161,103600.0,103590.0,0.927428]
[1747267916448,0.01658319,103600.0,103590.0,0.927428]
[1747267916669,0.01658319,103600.0,103590.0,1.157428]
[1747267917067,0.03248319,103600.0,103590.0,1.157428]
[1747267917498,0.04213504,103600.0,103590.0,1.157428]
[1747267917709,0.03248319,103600.0,103590.0,1.157428]
[1747267917887,0.03248319,103600.0,103590.0,1.158428]
[1747267918221,0.03248319,103600.0,103590.0,0.793028]
[1747267918418,0.03248319,103600.0,103590.0,1.158428]
[1747267919415,0.04213486,103600.0,103590.0,1.158428]
[1747267919616,0.03248319,103600.0,103590.0,1.158428]
[1747267920480,0.04213495,103600.0,103590.0,1.158428]
[1747267920682,0.03248319,103600.0,103590.0,1.158428]
[1747267921069,0.05178671,103600.0,103590.0,1.158428]
[1747267921685,0.04213486,103600.0,103590.0,1.158428]
[1747267922019,0.05178671,103600.0,103590.0,1.158428]
[1747267922453,0.04213504,103600.0,103590.0,1.158428]
[1747267922668,0.03248319,103600.0,103590.0,1.158428]
[1747267922866,0.03248319,103600.0,103590.0,1.575228]
[1747267923327,0.04213504,103600.0,103590.0,1.575228]
[1747267923555,0.00048319,103600.0,103590.0,1.6725374]
[1747267923821,0.03184,103620.0,103610.0,0.56198516]
[1747267924033,0.05128512,103620.0,103610.0,0.92734516]
[1747267924267,0.05128493,103620.0,103610.0,0.92734516]
[1747267924483,0.0609352,103620.0,103610.0,0.92734516]
[1747267924924,0.07358566,103620.0,103610.0,0.92734516]
[1747267925137,0.08323621,103620.0,103610.0,0.92734516]
[1747267925363,0.07358557,103620.0,103610.0,0.92734516]
[1747267926254,0.03498486,103620.0,103610.0,0.92734516]
[1747267926486,0.04463476,103620.0,103610.0,0.92734516]
[1747267926721,0.01958486,103620.0,103610.0,0.92734516]
[1747267926931,0.00318486,103620.0,103610.0,0.92734516]
[1747267927152,0.02873466,103620.0,103610.0,0.92734516]
[1747267927367,0.03838456,103620.0,103610.0,0.92734516]
[1747267927915,0.00318486,103620.0,103610.0,1.07019541]
[1747267927975,0.00318486,103620.0,103610.0,0.65929456]
[1747267928204,0.02883466,103620.0,103610.0,1.25457456]
[1747267928421,0.03848456,103620.0,103610.0,0.88929456]
[1747267928547,0.03848456,103620.0,103610.0,1.25457456]
[1747267929387,0.06743528,103620.0,103610.0,1.25457456]
[1747267929564,0.08283528,103620.0,103610.0,1.25457456]
[1747267929986,0.07318482,103620.0,103610.0,1.25457456]
[1747267930186,0.08283518,103620.0,103610.0,1.25457456]
[1747267930860,0.06353464,103620.0,103610.0,1.25457456]
[1747267931194,0.05388456,103620.0,103610.0,1.25457456]
[1747267931419,0.03848456,103620.0,103610.0,1.25457456]
[1747267931664,0.01918486,103620.0,103610.0,1.25457456]
[1747267932024,0.02883485,103620.0,103610.0,1.25457456]
[1747267932440,0.01918486,103620.0,103610.0,1.25457456]
[1747267932866,0.00318486,103620.0,103610.0,1.25457456]
[1747267933083,0.02248456,103620.0,103610.0,1.25457456]
[1747267934075,0.00318486,103620.0,103610.0,1.25457456]
[1747267934367,0.00318486,103620.0,103610.0,1.29991541]
[1747267936553,0.00318486,103620.0,103610.0,1.32356317]
[1747267937217,0.00018486,103620.0,103610.0,1.32356317]
[1747267937429,0.00018486,103620.0,103610.0,1.71101541]
[1747267946884,0.00018486,103620.0,103610.0,2.12765541]
[1747267947691,0.002,103630.0,103620.0,0.23650459]
[1747267947848,0.002,103630.0,103620.0,0.33381399]
[1747267948094,0.002,103630.0,103620.0,0.36551399]
[1747267948333,0.0334,103650.0,103640.0,0.56192091]
[1747267948549,0.0334,103650.0,103640.0,1.15892091]
[1747267948550,0.04304701,103650.0,103640.0,1.15892091]
[1747267948761,0.07198906,103650.0,103640.0,1.15892091]
[1747267948982,0.08163672,103650.0,103640.0,1.15892091]
[1747267949194,0.06234149,103650.0,103640.0,1.15892091]
[1747267949433,0.08163672,103650.0,103640.0,1.15892091]
[1747267950297,0.08663672,103650.0,103640.0,1.15892091]
[1747267951847,0.06734149,103650.0,103640.0,1.15892091]
[1747267952050,0.07698915,103650.0,103640.0,1.15892091]
[1747267952582,0.05769411,103650.0,103640.0,1.15892091]
[1747267952792,0.07698878,103650.0,103640.0,1.15892091]
[1747267952978,0.08663635,103650.0,103640.0,1.15892091]
[1747267953241,0.086637,103650.0,103640.0,1.15892091]
[1747267953470,0.0480471,103650.0,103640.0,1.15892091]
[1747267953688,0.07698944,103650.0,103640.0,1.15892091]
[1747267953904,0.06734168,103650.0,103640.0,1.15892091]
[1747267954119,0.0576943,103650.0,103640.0,1.15892091]
[1747267954335,0.0384,103650.0,103640.0,1.15892091]
[1747267954568,0.0480472,103650.0,103640.0,1.15892091]
[1747267955401,0.06734234,103650.0,103640.0,1.15892091]
[1747267956370,0.07636513,103650.0,103640.0,1.15892091]
[1747267956585,0.05706999,103650.0,103640.0,1.15892091]
[1747267957063,0.06671737,103650.0,103640.0,1.15892091]
[1747267957273,0.06734224,103650.0,103640.0,1.15892091]
[1747267957477,0.05769458,103650.0,103640.0,1.15892091]
[1747267957884,0.06734224,103650.0,103640.0,1.15892091]
[1747267958060,0.06734224,103650.0,103640.0,1.57552091]
[1747267958731,0.0480472,103650.0,103640.0,1.57552091]
[1747267959160,0.05769458,103650.0,103640.0,1.57552091]
[1747267960636,0.06734215,103650.0,103640.0,1.57552091]
[1747267960836,0.07698981,103650.0,103640.0,1.57552091]
[1747267961054,0.07698981,103650.0,103640.0,1.57552109]
[1747267961291,0.07698981,103650.0,103640.0,1.58516922]
[1747267961519,0.07698981,103650.0,103640.0,1.58768922]
[1747267961711,0.03314701,103650.0,103640.0,1.68499862]
[1747267961993,0.0235,103650.0,103640.0,1.68499862]
[1747267965185,0.007,103650.0,103640.0,1.68499862]
[1747267965543,0.0227,103650.0,103640.0,1.68499862]
[1747267968598,0.0391,103650.0,103640.0,1.68499862]
[1747267969831,0.0487471,103650.0,103640.0,1.68499862]
[1747267970075,0.0583943,103650.0,103640.0,1.68499862]
[1747267970522,0.06804159,103650.0,103640.0,1.68499862]
[1747267972366,0.08733682,103650.0,103640.0,1.58784922]
[1747267972567,0.08733682,103650.0,103640.0,1.21816922]
[1747267972815,0.27064678,103650.0,103640.0,1.57816109]
[1747267972978,0.07768972,103650.0,103640.0,1.58780922]
[1747267973636,0.07268972,103650.0,103640.0,1.58780922]
[1747267973869,0.07568972,103650.0,103640.0,1.58780922]
[1747267974061,0.05928972,103650.0,103640.0,1.58780922]
[1747267974517,0.07448972,103650.0,103640.0,1.58780922]
[1747267974748,0.05519449,103650.0,103640.0,1.58780922]
[1747267975567,0.0455472,103650.0,103640.0,1.58780922]
[1747267978506,0.05519468,103650.0,103640.0,1.58780922]
[1747267979555,0.04964214,103650.0,103640.0,1.17424922]
[1747267979762,0.05649448,103650.0,103640.0,1.36016922]
[1747267979966,0.05649448,103650.0,103640.0,1.36048922]
[1747267980369,0.05649439,103650.0,103640.0,1.36048922]
[1747267980575,0.05649439,103650.0,103640.0,1.36044922]
[1747267981737,0.0468471,103650.0,103640.0,1.36044922]
[1747267982870,0.05649439,103650.0,103640.0,1.36044922]
[1747267983053,0.0468471,103650.0,103640.0,1.36044922]
[1747267983298,0.0468471,103650.0,103640.0,1.39254922]
[1747267983299,0.0242943,103650.0,103640.0,1.39254922]
[1747267983516,0.005,103650.0,103640.0,1.60614922]
[1747267983758,0.005,103650.0,103640.0,1.59044922]
[1747267985145,0.002,103650.0,103640.0,1.59044922]
[1747267985789,0.004,103650.0,103640.0,1.59044922]
[1747267993213,0.01364701,103650.0,103640.0,1.59044922]
[1747267995405,0.004,103650.0,103640.0,1.59044922]
[1747267996891,0.0136472,103650.0,103640.0,1.59044922]
[1747267997104,0.0298472,103650.0,103640.0,1.59044922]
[1747267997526,0.0298471,103650.0,103640.0,1.59044922]
[1747267998572,0.03949448,103650.0,103640.0,1.36044922]
[1747267998782,0.05589448,103650.0,103640.0,1.36004922]
[1747267999003,0.05589448,103650.0,103640.0,0.98816922]
[1747267999224,0.05589448,103650.0,103640.0,1.36004922]
[1747267999918,0.05589439,103650.0,103640.0,1.36004922]
[1747268001811,0.0462471,103650.0,103640.0,1.36004922]
[1747268002025,0.0558943,103650.0,103640.0,1.36004922]
[1747268002193,0.06554159,103650.0,103640.0,1.36004922]
[1747268003116,0.0558943,103650.0,103640.0,0.94344922]
[1747268003966,0.06554168,103650.0,103640.0,0.94344922]
[1747268004358,0.0558943,103650.0,103640.0,0.94344922]
[1747268005642,0.25849912,103650.0,103640.0,0.34]
[1747268005877,0.34616169,103650.0,103640.0,0.34]
[1747268006343,0.35520072,103650.0,103640.0,0.34]
[1747268006805,0.23422427,103640.0,103630.0,0.41656]
[1747268007040,0.23422427,103640.0,103630.0,0.78896]
[1747268007268,0.2432633,103640.0,103630.0,1.12892]
[1747268007932,0.23422427,103640.0,103630.0,1.12892]
[1747268008189,0.23422427,103640.0,103630.0,0.75656]
[1747268008410,0.23422427,103640.0,103630.0,1.12948]
[1747268009515,0.24387277,103640.0,103630.0,1.33212392]
[1747268010124,0.23261366,103640.0,103630.0,1.33212392]
[1747268010344,0.0316,103640.0,103630.0,1.36107184]
[1747268010593,0.06054475,103640.0,103630.0,1.36107184]
[1747268010815,0.06054419,103640.0,103630.0,1.36107184]
[1747268011024,0.04124794,103640.0,103630.0,1.36107184]
[1747268011239,0.05089616,103640.0,103630.0,1.36107184]
[1747268011415,0.06054457,103640.0,103630.0,1.36107184]
[1747268011616,0.06054448,103640.0,103630.0,1.36107184]
[1747268012039,0.07019307,103640.0,103630.0,1.36107184]
[1747268012184,0.07019307,103640.0,103630.0,1.36159184]
[1747268013412,0.04124794,103640.0,103630.0,1.36159184]
[1747268013621,0.02544794,103640.0,103630.0,1.36159184]
[1747268013825,0.03509597,103640.0,103630.0,1.36159184]
[1747268014671,0.0447441,103640.0,103630.0,1.36159184]
[1747268016184,0.02544794,103640.0,103630.0,1.36159184]
[1747268016394,0.26464678,103650.0,103640.0,0.21227278]
[1747268016602,0.26464678,103650.0,103640.0,0.22192091]
[1747268016603,0.06204196,103650.0,103640.0,0.22192091]
[1747268016845,0.07168953,103650.0,103640.0,0.22192091]
[1747268017595,0.07368953,103650.0,103640.0,0.22192091]
[1747268017807,0.26664715,103650.0,103640.0,0.21227278]
[1747268018011,0.25699977,103650.0,103640.0,0.21227278]
[1747268018215,0.05439505,103650.0,103640.0,0.22192091]
[1747268018421,0.06404271,103650.0,103640.0,0.22192091]
[1747268020765,0.03294271,103650.0,103640.0,0.22192091]
[1747268021178,0.04914271,103650.0,103640.0,0.22192091]
[1747268021728,0.04914214,103650.0,103640.0,0.22192091]
[1747268021939,0.03949448,103650.0,103640.0,0.22192091]
[1747268022343,0.02329439,103650.0,103640.0,0.22192091]
[1747268022740,0.03949439,103650.0,103640.0,0.22192091]
[1747268022996,0.02984701,103650.0,103640.0,0.22192091]
[1747268023226,0.004,103650.0,103640.0,0.56192091]
[1747268023439,0.004,103650.0,103640.0,0.57752091]
[1747268024041,0.004,103650.0,103640.0,0.80752091]
[1747268024278,0.01364701,103650.0,103640.0,0.80752091]
[1747268024822,0.02329411,103650.0,103640.0,0.79192091]
[1747268028833,0.0329414,103650.0,103640.0,0.79192091]
[1747268029051,0.03294131,103650.0,103640.0,0.79192091]
[1747268030370,0.03294131,103650.0,103640.0,0.97840091]
[1747268030643,0.04258869,103650.0,103640.0,0.97840091]
[1747268031243,0.03294131,103650.0,103640.0,0.97840091]
[1747268031463,0.04258869,103650.0,103640.0,0.97840091]
[1747268033410,0.02329421,103650.0,103640.0,0.97840091]
[1747268033624,0.02329421,103650.0,103640.0,0.99370091]
[1747268034024,0.004,103650.0,103640.0,0.99370091]
[1747268034288,0.02329421,103650.0,103640.0,0.99370091]
[1747268034498,0.0329415,103650.0,103640.0,0.99370091]
[1747268035285,0.04258888,103650.0,103640.0,0.97840091]
[1747268038868,0.05223645,103650.0,103640.0,0.79192091]
[1747268039089,0.05223645,103650.0,103640.0,1.16272091]
[1747268040572,0.04258888,103650.0,103640.0,1.16272091]
[1747268041003,0.05223645,103650.0,103640.0,1.16272091]
[1747268041921,0.05223636,103650.0,103640.0,1.16272091]
[1747268042292,0.0329415,103650.0,103640.0,1.16272091]
[1747268042499,0.04258898,103650.0,103640.0,1.16272091]
[1747268044491,0.04258888,103650.0,103640.0,1.16272091]
[1747268046672,0.0329415,103650.0,103640.0,1.16272091]
[1747268046902,0.03294159,103650.0,103640.0,1.16272091]
[1747268049165,0.004,103650.0,103640.0,1.19552091]
[1747268049334,0.0136472,103650.0,103640.0,1.19552091]
[1747268049554,0.0136471,103650.0,103640.0,1.19552091]
[1747268049795,0.004,103650.0,103640.0,1.19552091]
[1747268052780,0.0136472,103650.0,103640.0,1.16272091]
[1747268053017,0.004,103650.0,103640.0,1.16272091]
[1747268053254,0.004,103650.0,103640.0,1.57928091]
[1747268054624,0.004,103650.0,103640.0,1.59578091]
[1747268055075,0.004,103650.0,103640.0,1.61218091]
[1747268057114,0.004,103650.0,103640.0,1.70949031]
[1747268059467,0.004,103650.0,103640.0,1.72403116]
[1747268067665,0.004,103650.0,103640.0,1.33683116]
[1747268067876,0.004,103650.0,103640.0,1.70707116]
[1747268068900,0.004,103650.0,103640.0,1.72217116]
[1747268072681,0.004,103650.0,103640.0,2.13327116]
[1747268073729,0.002,103650.0,103640.0,2.13527116]
[1747268074130,0.002,103650.0,103640.0,2.13427116]
[1747268074582,0.002,103650.0,103640.0,2.13627116]
[1747268075245,0.002,103650.0,103640.0,2.13587116]
[1747268075452,0.002,103650.0,103640.0,1.76603116]
[1747268075665,0.002,103650.0,103640.0,2.13583116]
[1747268081418,0.002,103650.0,103640.0,2.13579116]
[1747268083570,0.002,103650.0,103640.0,2.13563116]
[1747268084822,0.002,103650.0,103640.0,2.13551116]
[1747268085273,0.002,103650.0,103640.0,2.10395116]
[1747268085829,0.002,103650.0,103640.0,2.12045116]
[1747268086505,0.002,103650.0,103640.0,2.13625116]
[1747268090108,0.002,103650.0,103640.0,2.14576049]
[1747268090982,0.002,103650.0,103640.0,2.12996049]
[1747268093837,0.002,103650.0,103640.0,2.11346049]
[1747268104998,0.002,103650.0,103640.0,2.14486049]
[1747268105141,0.002,103650.0,103640.0,1.77534049]
[1747268105406,0.002,103650.0,103640.0,2.14258049]
[1747268106853,0.002,103650.0,103640.0,1.77534049]
[1747268107059,0.002,103650.0,103640.0,2.14250049]
[1747268107269,1e-08,103660.0,103650.0,0.57644035]
[1747268107476,0.00013974,103660.0,103650.0,1.10054975]
[1747268108115,0.00013974,103660.0,103650.0,1.33054975]
[1747268111406,0.00013974,103660.0,103650.0,1.51410975]
[1747268114370,1e-08,103660.0,103650.0,1.51410975]
[1747268118290,1e-08,103660.0,103650.0,1.10300975]
[1747268118926,0.01201103,103670.0,103660.0,0.60801894]
[1747268119157,0.01210409,103670.0,103660.0,0.68892834]
[1747268119400,0.02132732,103690.0,103680.0,0.56183528]
[1747268119401,0.00204,103690.0,103680.0,0.56183528]
[1747268119653,0.01750048,103700.0,103690.0,0.56181389]
[1747268119872,0.01759356,103700.0,103690.0,1.36161389]
[1747268120090,0.13099085,103740.0,103710.0,0.34]
[1747268120297,0.21210924,103720.0,103710.0,0.34]
[1747268120555,0.02830124,103720.0,103710.0,0.54092227]
[1747268120782,0.02830124,103720.0,103710.0,0.53128]
[1747268120783,0.22112808,103720.0,103710.0,0.53128]
[1747268121001,0.22112808,103720.0,103710.0,0.34]
[1747268121002,0.21210924,103720.0,103710.0,0.34]
[1747268121228,0.20248751,103710.0,103700.0,0.002]
[1747268121895,0.21150708,103710.0,103700.0,0.002]
[1747268122346,0.22780708,103710.0,103700.0,0.19328]
[1747268123000,0.23080708,103710.0,103700.0,0.19328]
[1747268123217,0.24680708,103710.0,103700.0,0.002]
[1747268123444,0.24680708,103710.0,103700.0,0.19328]
[1747268124291,0.24680708,103710.0,103700.0,0.38592]
[1747268127043,0.23778751,103710.0,103700.0,0.38592]
[1747268127240,0.04494208,103710.0,103700.0,0.3955631]
[1747268127471,0.06422605,103710.0,103700.0,0.60771269]
[1747268127672,0.05458332,103710.0,103700.0,0.61735524]
[1747268127879,0.08350965,103710.0,103700.0,0.60771269]
[1747268128749,0.07386738,103710.0,103700.0,0.61735524]
[1747268129162,0.08350965,103710.0,103700.0,0.61735524]
[1747268131508,0.07386729,103710.0,103700.0,0.61735524]
[1747268131944,0.0578672,103710.0,103700.0,0.61735524]
[1747268132172,0.03858323,103710.0,103700.0,0.61735524]
[1747268132413,0.03858323,103710.0,103700.0,0.95735524]
[1747268132655,0.04822512,103710.0,103700.0,0.95735524]
[1747268133577,0.03858323,103710.0,103700.0,0.95735524]
[1747268134049,0.04822522,103710.0,103700.0,0.95735524]
[1747268134281,0.05786711,103710.0,103700.0,0.95735524]
[1747268134508,0.05786702,103710.0,103700.0,0.95735524]
[1747268135051,0.05786702,103710.0,103700.0,1.18735524]
[1747268135255,0.02894152,103710.0,103700.0,1.18735524]
[1747268135462,0.003,103710.0,103700.0,1.18735524]
[1747268135904,0.01264152,103710.0,103700.0,1.18735524]
[1747268136342,0.02228323,103710.0,103700.0,1.18735524]
[1747268136578,0.03192503,103710.0,103700.0,1.18735524]
[1747268137151,0.01264152,103710.0,103700.0,1.18735524]
[1747268137596,0.02228323,103710.0,103700.0,1.18735524]
[1747268137815,0.02228332,103710.0,103700.0,1.18735524]
[1747268138034,0.02228323,103710.0,103700.0,1.18735524]
[1747268138262,0.02228323,103710.0,103700.0,0.95735524]
[1747268138682,0.02228323,103710.0,103700.0,1.18735524]
[1747268139111,0.01264152,103710.0,103700.0,1.18735524]
[1747268139324,0.02228314,103710.0,103700.0,1.18735524]
[1747268139552,0.02228314,103710.0,103700.0,0.95735524]
[1747268139977,0.003,103710.0,103700.0,1.20315524]
[1747268140197,0.003,103710.0,103700.0,1.21945524]
[1747268140407,0.01264152,103710.0,103700.0,1.21945524]
[1747268140631,0.003,103710.0,103700.0,1.21945524]
[1747268141139,0.01264162,103710.0,103700.0,1.21945524]
[1747268141376,0.01264152,103710.0,103700.0,1.21945524]
[1747268141602,0.02228314,103710.0,103700.0,1.21945524]
[1747268141842,0.003,103710.0,103700.0,1.31676464]
[1747268143300,0.003,103710.0,103700.0,1.39411538]
[1747268143515,0.003,103710.0,103700.0,0.94738549]
[1747268143729,0.003,103710.0,103700.0,1.33486549]
[1747268144613,0.003,103710.0,103700.0,0.94738549]
[1747268145095,0.003,103710.0,103700.0,1.33478549]
[1747268145543,0.02892206,103720.0,103710.0,0.56177111]
[1747268146456,0.02892206,103720.0,103710.0,0.79177111]
[1747268146718,0.01928119,103720.0,103710.0,0.79177111]
[1747268147173,0.02128119,103720.0,103710.0,0.79177111]
[1747268147606,0.03092197,103720.0,103710.0,0.79177111]
[1747268148396,0.07166368,103720.0,103710.0,0.83064949]
[1747268148655,0.05238147,103720.0,103710.0,0.84993282]
[1747268148877,0.0716634,103720.0,103710.0,0.84029111]
[1747268149087,0.26449033,103720.0,103710.0,0.8402512]
[1747268149300,0.0558634,103720.0,103710.0,1.18981282]
[1747268149515,0.0405634,103720.0,103710.0,0.80141282]
[1747268149785,0.0405634,103720.0,103710.0,1.19577282]
[1747268150210,0.03092234,103720.0,103710.0,1.19577282]
[1747268150407,0.04056331,103720.0,103710.0,1.21217282]